Cogmind - Beta 15 @@@ ROGUE MODE // 2025.08.21 @ 16:19:40 Player: NQH Result: Destroyed by Y-54 Guardian with Gatling Laser Performance ------------- Evolutions (4) 2000 Regions Visited (8) 1600 Robots Destroyed (77) 385 Value Destroyed (2821) 2821 Prototype IDs (2) 40 Alien Tech Used (0) 0 Bonus (168) 168 TOTAL SCORE: 7014 Bonus ------- High Alert Combat Kills 168 Cogmind --------- Core Integrity 0/850 Matter 22/450 Energy 100/100 System Corruption 1% Temperature Warm (139) Movement Core (100) Ox1 Location -6/Factory Parts ------- > --- POWER (2) -------- (None) > --- PROPULSION (4) --- (None) > --- UTILITY (5) ------ Coolant Injector Large Matter Pod > --- WEAPON (4) ------- (None) > --- INVENTORY (5) ---- (None) Peak State ------------ > --- POWER ------------ Micro Nuclear Core > --- PROPULSION ------- Titanium Leg Titanium Leg Improved Carbon-fiber Leg > --- UTILITY ---------- Large Storage Unit Hardened Heavy Armor Plating Improved Light Armor Plating System Guard > --- WEAPON ----------- Precision Grenade Launcher Precision Grenade Launcher Precision Grenade Launcher Precision Grenade Launcher > --- INVENTORY -------- Coolant Injector Compact Battery Compact Battery Compact Battery Large Matter Pod Improved Terrain Scan Processor Reflective Plating Hacking Suite Arc Projector Arc Projector Advanced Beam Cannon Heavy Plasma Cannon Heavy Plasma Cannon Improved Datajack Great Maul [Rating: 56] Favorites ----------- Power Micro Nuclear Core Engine Ion Engine Power Core Micro Nuclear Core Propulsion Titanium Leg Treads Light Treads Leg Titanium Leg Flight Unit Cesium-ion Thruster Utility Visual Processing Unit Device ECM Suite Storage Large Storage Unit Processor Visual Processing Unit Protection Improved Light Armor Plating Weapon Light Cannon Energy Gun Arc Projector Energy Cannon Heavy Plasma Cannon Ballistic Gun Flak Gun Ballistic Cannon Light Cannon Launcher Precision Grenade Launcher Special Weapon Remote Datajack Impact Weapon Great Maul Slashing Weapon Chainsword Special Melee Weapon Datajack Build | -11 -10 -9 -9 -8 -7 -7 -7 -6 ------- Run | Yrd Mat Mat Min Mat Fac Low Low Fac Slots Evolved 8 | . . 2 . 2 2 . . 2 Power 1 | . . . . . 1 . . . Propulsion 2 | . . . . . . . . 2 Utility 3 | . . 2 . . 1 . . . Weapon 2 | . . . . 2 . . . . Parts Attached 87 | 6 4 7 2 16 31 4 . 17 Power 11 | 1 . 1 2 1 4 1 . 1 Engine 6 | 1 . 1 2 . 1 1 . . Core 5 | . . . . 1 3 . . 1 Reactor . | . . . . . . . . . Propulsion 16 | 2 . 2 . 6 3 . . 3 Treads 4 | 2 . 2 . . . . . . Leg 8 | . . . . 2 3 . . 3 Wheel . | . . . . . . . . . Hover . | . . . . . . . . . Flight 4 | . . . . 4 . . . . Utility 26 | . 2 2 . 5 9 3 . 5 Device 6 | . 1 . . 2 . 2 . 1 Storage 6 | . . . . 1 2 . . 3 Processor 6 | . 1 1 . 2 1 . . 1 Hackware . | . . . . . . . . . Protection 8 | . . 1 . . 6 1 . . Artifact . | . . . . . . . . . Weapon 34 | 3 2 2 . 4 15 . . 8 Energy Gun 10 | 3 . . . . 7 . . . Energy Cannon 3 | . . . . . . . . 3 Ballistic Gun 1 | . . . . . 1 . . . Ballistic Cannon 7 | . 2 2 . 3 . . . . Launcher 8 | . . . . . 3 . . 5 Special Weapon 1 | . . . . . 1 . . . Impact Weapon 1 | . . . . . 1 . . . Slashing Weapon 2 | . . . . 1 1 . . . Piercing Weapon . | . . . . . . . . . Special Melee Weapon 1 | . . . . . 1 . . . Unidentified Prototypes 2 | . . . . . . . . 2 Parts Lost 46 | . . 1 . 4 18 . . 23 Power 4 | . . . . . 2 . . 2 Propulsion 10 | . . 1 . 2 2 . . 5 Utility 13 | . . . . 1 4 . . 8 Weapon 19 | . . . . 1 10 . . 8 Highest Loss Streak 12 | . . 1 . 4 11 . . 12 To Critical Strikes . | . . . . . . . . . Average Backups 9 | . 3 4 5 4 11 12 13 14 Power . | . . . . . . . . . Propulsion . | . . . 1 1 1 . . . Utility 4 | . . . . . 6 7 8 7 Weapon 3 | . 3 4 3 1 1 3 4 5 Tool/Special . | . . . . . . . . . Unused Backups 3 | . . . . . . . . 3 Power . | . . . . . . . . . Propulsion . | . . . . . . . . . Utility 2 | . . . . . . . . 2 Weapon . | . . . . . . . . . Tool/Special 1 | . . . . . . . . 1 Average Slot Usage (%) 86 | . 91 83 100 97 86 88 92 77 Engine 3 | . 14 11 11 . . 1 7 2 Core 6 | . . . . 8 9 7 7 5 Treads 5 | . 27 19 22 4 . . . . Leg 11 | . . . . 5 14 15 15 17 Device 3 | . 12 11 11 9 . 1 . . Storage 4 | . . . . . 7 7 7 6 Processor 11 | . 8 17 22 19 20 1 . . Protection 10 | . . 2 11 5 5 23 23 18 Energy Gun 4 | . 9 . . . 2 15 15 4 Ballistic Cannon 12 | . 18 22 22 33 13 . . . Launcher 7 | . . . . . 7 7 7 17 Slashing Weapon 2 | . . . . 1 3 7 7 1 Peak Build Rating 56 | 5 8 11 11 28 40 46 46 56 Average Rating 30 | 4 7 9 11 22 29 43 46 49 On Entrance 21 | . 5 8 11 11 23 40 46 46 Naked Turns . | . . . . . . . . . Heaviest Build 79 | 9 13 16 16 25 56 73 73 79 Greatest Support 68 | 40 40 40 40 40 34 34 34 68 Greatest Overweight (x) 9 | . . . . 8 3 2 2 9 Average Overweight (x) . | . . . . . . 1 2 1 Largest Inventory Capacity 15 | 5 5 5 5 8 15 15 15 15 Average Capacity 11 | 5 5 5 5 5 14 15 15 14 Most Carried 15 | 1 5 5 5 6 15 15 13 15 Average Carried 9 | . 3 4 5 4 11 12 13 14 Final Capacity 15 | 5 5 5 5 8 15 15 15 5 Final Carried 13 | . 5 5 5 6 11 13 13 . Class Distribution -------------------- 39% | Tank 27% | Mutant 20% | Gunner 7% | Scavenger-Mutant 3% | Skirmisher Dominant Class ---------------- Mutant | -10/Materials Mutant | -9/Materials Scavenger-Mutant | -9/Mines Tank | -8/Materials Gunner | -7/Factory Tank | -7/Lower Caves Tank | -7/Lower Caves Tank | -6/Factory Resources | -11 -10 -9 -9 -8 -7 -7 -7 -6 ----------- Run | Yrd Mat Mat Min Mat Fac Low Low Fac Matter Collected 2323 | 260 117 276 68 562 695 278 5 62 Remotely . | . . . . . . . . . Salvage Created 1949 | . 197 310 40 463 800 . . 139 Parts 129 | . 16 18 10 16 57 . . 12 Haulers Intercepted 1 | . . . . . 1 . . . Recyclers Shooed 1 | . . 1 . . . . . . Parts Field Recycled . | . . . . . . . . . Retrieved Matter . | . . . . . . . . . Parts Self-Destructed 1 | . . . . . . 1 . . Prevented 4 | . . . . . . . 4 . Kills | -11 -10 -9 -9 -8 -7 -7 -7 -6 ------- Run | Yrd Mat Mat Min Mat Fac Low Low Fac Combat Hostiles Destroyed 56 | . 5 8 4 12 21 . . 6 Melee 2 | . . . . . 1 . . 1 Guns 4 | . 3 . . . 1 . . . Cannons 32 | . 2 8 4 12 6 . . . AOE 17 | . . . . . 12 . . 5 Classes Destroyed 12 | . 3 1 . 1 6 . . 1 Worker 7 | . . . . . 7 . . . Builder 4 | . . . . . 3 . . 1 Tunneler 2 | . . . . . 1 . . 1 Hauler 1 | . . . . . 1 . . . Recycler 2 | . . . . . 2 . . . Watcher 5 | . 2 2 . 1 . . . . Swarmer 9 | . 2 . 4 . 2 . . 1 Grunt 25 | . 3 4 . 6 10 . . 2 Duelist 1 | . . . . . . . . 1 Sentry 12 | . . 4 . 5 3 . . . Hunter 4 | . . . . 1 3 . . . Programmer 5 | . . . . . 3 . . 2 Best Kill Streak 7 | . 3 3 4 3 7 . . 3 Combat Bots Only 5 | . 3 3 4 3 5 . . 2 Max Kills in Single Turn 6 | . 2 1 2 1 6 . . 2 Gunslinging 1 | . 1 . . . . . . . Exploded 2 | . . . . . 2 . . 2 Melee 1 | . . . . . 1 . . 1 Uniques/NPCs Destroyed . | . . . . . . . . . Combat | -11 -10 -9 -9 -8 -7 -7 -7 -6 -------- Run | Yrd Mat Mat Min Mat Fac Low Low Fac Hostile Shots Fired 879 | . 23 38 17 66 375 26 . 334 Missed 305 | . 6 9 5 21 133 10 . 121 Hits 574 | . 17 29 12 45 242 16 . 213 Melee 1 | . . . . . . . . 1 Projectile 573 | . 17 29 12 45 242 16 . 212 AOE 1 | . . . . . . . . 1 Critical Strikes 13 | . . 1 . 1 3 1 . 7 Damage Taken 8027 | . 174 387 91 674 2840 272 . 3589 Core 1622 | . 12 33 8 42 628 42 . 857 Absorbed by Shields . | . . . . . . . . . Ignored by Resistances 24 | . . . . . 20 . . 4 Regen/Repaired (Parts) 58 | . 58 . . . . . . . Core Remaining (%) 76 | 100 95 . 89 92 . . 4 . Volleys Fired 134 | . 14 28 6 33 43 . . 10 Largest 4 | . 2 2 2 4 4 . . 4 Hottest 235 | . 80 60 60 120 165 . . 235 Shots Fired 359 | . 28 56 12 119 119 1 . 24 Gun 39 | . 14 . . . 23 1 . 1 Cannon 271 | . 14 56 12 119 65 . . 5 Launcher 49 | . . . . . 31 . . 18 Special . | . . . . . . . . . Kinetic 266 | . 14 56 12 119 65 . . . Thermal 5 | . . . . . . . . 5 Explosive 49 | . . . . . 31 . . 18 Electromagnetic 39 | . 14 . . . 23 1 . 1 Robot Hit Streak 18 | . 5 8 1 12 15 . . 18 Robot Miss Streak 6 | . 2 5 3 5 6 . . . Penetration Max . | . . . . . . . . . Secondary Targets 2 | . 1 . . . 1 . . . Max Gunslinging Chain 1 | . 1 . . . 1 . . . Shots Hit Robots 202 | . 16 31 4 63 70 . . 18 Core Hits 147 | . 9 16 3 28 72 . . 19 Critical Kills . | . . . . . . . . . Critical Parts Destroyed 1 | . . . . . . . . 1 Critical Strikes 11 | . 2 1 1 2 4 . . 1 Blast 5 | . 1 1 1 2 . . . . Corrupt 1 | . 1 . . . . . . . Smash 1 | . . . . . . . . 1 Sever 4 | . . . . . 4 . . . Melee Attacks 18 | . . . . . 9 . . 9 Impact 9 | . . . . . . . . 9 Slashing 7 | . . . . . 7 . . . Piercing . | . . . . . . . . . Sneak Attacks . | . . . . . . . . . Combat Hostiles . | . . . . . . . . . Follow-up Attacks . | . . . . . . . . . Damage Inflicted 6573 | . 241 578 84 1014 3141 . . 1515 Guns 350 | . 142 . . . 208 . . . Cannons 2363 | . 99 559 84 1014 545 . . 62 Explosions 3358 | . . . . . 2127 . . 1231 Melee 441 | . . . . . 219 . . 222 Ramming 61 | . . 19 . . 42 . . . Kinetic 2301 | . 99 559 84 1014 545 . . . Thermal 334 | . . . . . 272 . . 62 Explosive 3086 | . . . . . 1855 . . 1231 Electromagnetic 350 | . 142 . . . 208 . . . Impact 222 | . . . . . . . . 222 Slashing 219 | . . . . . 219 . . . Piercing . | . . . . . . . . . Highest Corruption 5 | . . . . . 5 5 5 1 Average Corruption 3 | . . . . . 3 5 5 1 Corruption Purged . | . . . . . . . . . Corruption Blocked . | . . . . . . . . . Effects 51 | . . . . . 32 18 1 . Message Errors 10 | . . . . . 7 3 . . Matter Fused 12 | . . . . . 8 4 . . Heat Flow Errors 9 | . . . . . 4 4 1 . Energy Discharges 4 | . . . . . 3 1 . . Data Loss (minor) 5 | . . . . . 2 3 . . Data Loss (major) 4 | . . . . . 2 2 . . Misfires 3 | . . . . . 2 1 . . Alerts 1 | . . . . . 1 . . . Weapon Failures 3 | . . . . . 3 . . . Overload Shots . | . . . . . . . . . Overflow Damage 373 | . . . 12 17 146 . . 198 Projectiles 29 | . . . 12 17 . . . . Explosions 304 | . . . . . 146 . . 158 Melee 40 | . . . . . . . . 40 Knockbacks 18 | . 1 5 . 6 6 . . . Impact . | . . . . . . . . . Kinetic 16 | . 1 4 . 5 6 . . . Secondary 2 | . . 1 . 1 . . . . Self-Inflicted Damage 851 | . . . . . 533 . . 318 Shots 18 | . . . . . 12 . . 6 Rammed 7 | . . 7 . . . . . . Targets Rammed 16 | . . 7 . . 9 . . . Kicked 9 | . . . . . 9 . . . Crushed . | . . . . . . . . . Highest Temperature 429 | . 126 12 . 309 429 229 156 192 Average Temperature 104 | . 52 5 . 117 122 84 79 85 Received Heat Transfer 1821 | . 60 156 . 288 525 36 . 756 Effects 14 | . . . . 3 11 . . . Shutdowns 5 | . . . . . 5 . . . Energy Bleed 4 | . . . . 1 3 . . . Interference 5 | . . . . 2 3 . . . Siege Activations . | . . . . . . . . . Martial Activations . | . . . . . . . . . Shielding Activations . | . . . . . . . . . Robots Disrupted 1 | . . . . . 1 . . . Combat Hostiles 1 | . . . . . 1 . . . Robots Corrupted 1 | . . . . . 1 . . . Combat Hostiles 1 | . . . . . 1 . . . Parts Fried 3 | . . . . . 3 . . . Impact Corruptions 2 | . . . . . . . . 2 Robots Melted . | . . . . . . . . . Combat Hostiles . | . . . . . . . . . Parts Melted 1 | . . . . . 1 . . . Heat Transferred 361 | . . . . . 250 . . 111 Parts Sabotaged . | . . . . . . . . . Parts Stolen . | . . . . . . . . . Parts Stripped . | . . . . . . . . . Power Chain Reactions 1 | . . . . . 1 . . . Alert | -11 -10 -9 -9 -8 -7 -7 -7 -6 ------- Run | Yrd Mat Mat Min Mat Fac Low Low Fac Maximum Alert Level 2 | . . . . . 2 . . . Low Security (%) 77 | 100 100 100 100 100 33 . . 100 Level 1 6 | . . . . . 19 . . . Level 2 15 | . . . . . 46 . . . Level 3 . | . . . . . . . . . Level 4 . | . . . . . . . . . Level 5 . | . . . . . . . . . High Security . | . . . . . . . . . Max Security . | . . . . . . . . . Peak Influence 563 | . 70 74 80 80 563 . . 99 Initial 21 | . . . 15 . 21 . . . Average 107 | . 16 25 21 25 291 . . 7 Influence Increases 2251 | . 138 240 90 343 1138 . . 302 Destroy 0b10 Robot/C 1120 | . 100 160 80 240 420 . . 120 Destroy 0b10 Robot/NC 105 | . 10 10 . 5 70 . . 10 Destroy Leader 332 | . 24 54 10 82 122 . . 40 Successful Hack 3 | . 3 . . . . . . . Disable Machine 285 | . . 15 . 15 195 . . 60 Anti-Garrison Action 150 | . . . . . 150 . . . Destroy Structure 241 | . 1 1 . 1 181 . . 57 Lose Combat Pursuer 15 | . . . . . . . . 15 Influence Decreases 2182 | . 138 200 130 295 706 480 . 233 Entered New Map 230 | . . . 25 . 27 178 . . Time Decay 1464 | . 138 190 105 265 359 302 . 105 Lost Part 338 | . . 10 . 30 170 . . 128 Purge Threat 150 | . . . . . 150 . . . Squads Dispatched 17 | . . 1 . 3 8 . . 5 Investigation 3 | . . . . 1 1 . . 1 Extermination 6 | . . . . . 3 . . 3 Reinforcement 6 | . . 1 . 2 2 . . 1 Assault 2 | . . . . . 2 . . . Garrison . | . . . . . . . . . Intercept . | . . . . . . . . . Searches Triggered . | . . . . . . . . . Construction Impeded 1 | . . . . . 1 . . . Haulers Reinforced . | . . . . . . . . . Active Scanning Responses . | . . . . . . . . . Cargo Convoy Interrupts . | . . . . . . . . . Stealth | -11 -10 -9 -9 -8 -7 -7 -7 -6 --------- Run | Yrd Mat Mat Min Mat Fac Low Low Fac Distress Signals 3 | . . 3 . . . . . . Communications Jammed . | . . . . . . . . . Distress Signals . | . . . . . . . . . Times Spotted 104 | . 11 21 4 18 26 7 . 17 Peak Tracking Total 8 | . 5 4 4 3 4 7 . 8 Tactical Retreats 6 | . 1 4 . . . . . 1 Traps | -11 -10 -9 -9 -8 -7 -7 -7 -6 ------- Run | Yrd Mat Mat Min Mat Fac Low Low Fac Traps Triggered 7 | . 1 . . 1 4 . . 1 Indirectly . | . . . . . . . . . Trap Hack Attempts . | . . . . . . . . . Triggered . | . . . . . . . . . Disarmed . | . . . . . . . . . Reprogrammed . | . . . . . . . . . Reused . | . . . . . . . . . Traps Extracted . | . . . . . . . . . Installed . | . . . . . . . . . Triggered . | . . . . . . . . . Machines | -11 -10 -9 -9 -8 -7 -7 -7 -6 ---------- Run | Yrd Mat Mat Min Mat Fac Low Low Fac Machines Disabled 20 | . . 1 . 1 14 . . 4 Max in Single Turn 11 | . . 1 . 1 11 . . 2 Garrison Access 1 | . . . . . 1 . . . Machines Repaired . | . . . . . . . . . Machines Dismantled . | . . . . . . . . . Machines Sabotaged . | . . . . . . . . . Overloaded Fab Kills . | . . . . . . . . . Hacking | -11 -10 -9 -9 -8 -7 -7 -7 -6 --------- Run | Yrd Mat Mat Min Mat Fac Low Low Fac Machines Accessed 6 | . 1 1 . 1 2 1 . . Terminals 2 | . . . . . 2 . . . Fabricators . | . . . . . . . . . Repair Stations 1 | . 1 . . . . . . . Recycling Units 1 | . . 1 . . . . . . Scanalyzers 1 | . . . . 1 . . . . Garrison Access . | . . . . . . . . . Total Hacks 11 | . 2 1 . 3 4 1 . . Successful 8 | . 2 1 . 2 2 1 . . Failed 3 | . . . . 1 2 . . . Catastrophic 1 | . . . . . 1 . . . Database Lockouts . | . . . . . . . . . Manual 3 | . . . . . 3 . . . Terminals 4 | . . . . . 4 . . . Fabricators . | . . . . . . . . . Repair Stations 2 | . 2 . . . . . . . Recycling Units 1 | . . 1 . . . . . . Scanalyzers 3 | . . . . 3 . . . . Garrison Access . | . . . . . . . . . Terminal Hacks 3 | . . . . . 2 1 . . Open Door 1 | . . . . . . 1 . . Alert Level 1 | . . . . . 1 . . . Unreport Threat 1 | . . . . . 1 . . . Fabricator Hacks . | . . . . . . . . . Repair Station Hacks 2 | . 2 . . . . . . . Scan Component 1 | . 1 . . . . . . . Repair 1 | . 1 . . . . . . . Recycling Unit Hacks 1 | . . 1 . . . . . . Report Inventory 1 | . . 1 . . . . . . Scanalyzer 2 | . . . . 2 . . . . Insert Component 1 | . . . . 1 . . . . Analyze 1 | . . . . 1 . . . . Garrison Access Hacks . | . . . . . . . . . Unauthorized Hacks . | . . . . . . . . . Terminals . | . . . . . . . . . Fabricators . | . . . . . . . . . Repair Stations . | . . . . . . . . . Recycling Units . | . . . . . . . . . Scanalyzers . | . . . . . . . . . Garrison Access . | . . . . . . . . . Data Cores Recovered . | . . . . . . . . . Used . | . . . . . . . . . Hacking Detections 3 | . . . . 1 2 . . . Full Trace Events 1 | . . . . . 1 . . . Feedback Events . | . . . . . . . . . Feedback Blocked . | . . . . . . . . . Robot Schematics Acquired . | . . . . . . . . . Robots Built . | . . . . . . . . . Authchips . | . . . . . . . . . Time . | . . . . . . . . . Total Robot Build Rating . | . . . . . . . . . Part Schematics Acquired 1 | . . . . 1 . . . . Parts Built . | . . . . . . . . . Authchips . | . . . . . . . . . Time . | . . . . . . . . . Total Part Build Rating . | . . . . . . . . . Parts Repaired 1 | . 1 . . . . . . . Time 26 | . 26 . . . . . . . Parts Recycled . | . . . . . . . . . Recycled Matter . | . . . . . . . . . Retrieved Matter . | . . . . . . . . . Retrieved Components . | . . . . . . . . . Parts Scanalyzed 1 | . . . . 1 . . . . Part Schematics Acquired 1 | . . . . 1 . . . . Parts Damaged . | . . . . . . . . . Bothacking | -11 -10 -9 -9 -8 -7 -7 -7 -6 ------------ Run | Yrd Mat Mat Min Mat Fac Low Low Fac Used RIF Installer . | . . . . . . . . . Robots Hacked 1 | . . . . . 1 . . . Non-combat 1 | . . . . . 1 . . . Combat . | . . . . . . . . . Robot Hacks Applied 1 | . . . . . 1 . . . parse_system 1 | . . . . . 1 . . . Relay Couplers Released 2 | . . . . . 2 . . . Machine Destruction 2 | . . . . . 2 . . . Fabnet Peak Effective % . | . . . . . . . . . Robots Rewired . | . . . . . . . . . Allies Hacked . | . . . . . . . . . Hacks Repelled . | . . . . . . . . . Allies | -11 -10 -9 -9 -8 -7 -7 -7 -6 -------- Run | Yrd Mat Mat Min Mat Fac Low Low Fac Total Allies . | . . . . . . . . . Largest Group . | . . . . . . . . . Highest-Rated Group . | . . . . . . . . . Highest-Rated Ally . | . . . . . . . . . Total Orders . | . . . . . . . . . Ally Attacks . | . . . . . . . . . Total Damage . | . . . . . . . . . Kills . | . . . . . . . . . Allies Corrupted . | . . . . . . . . . Allies Melted . | . . . . . . . . . Intel | -11 -10 -9 -9 -8 -7 -7 -7 -6 ------- Run | Yrd Mat Mat Min Mat Fac Low Low Fac Active Infowar (turns) 4192 | . 497 637 359 754 1945 . . . Optics 4028 | . 333 637 359 754 1945 . . . ECM 1542 | . 497 637 359 49 . . . . Robot Analysis Total . | . . . . . . . . . Derelict Logs Recovered 1 | . . . 1 . . . . . Drone Launches . | . . . . . . . . . Drone Recoveries . | . . . . . . . . . Exploration | -11 -10 -9 -9 -8 -7 -7 -7 -6 ------------- Run | Yrd Mat Mat Min Mat Fac Low Low Fac Turns Passed 6968 | 74 545 637 359 754 2065 685 71 1778 Spaces Moved 3115 | 42 290 271 212 380 922 281 27 690 Core 16 | 2 . . . 5 . . . 9 Treads 906 | 40 290 271 212 93 . . . . Legs 2050 | . . . . 139 922 281 27 681 Wheels . | . . . . . . . . . Hover . | . . . . . . . . . Flight 143 | . . . . 143 . . . . Fastest Speed 50 | 50 160 160 160 112 125 200 270 50 Average Speed 188 | 154 160 160 160 159 195 239 270 203 Slowest Speed 500 | 160 160 160 160 450 330 270 270 500 Overloaded Moves . | . . . . . . . . . Propulsion Burnouts . | . . . . . . . . . Robots Hopped . | . . . . . . . . . Potential Cave-ins 3 | . . . . . 3 . . . Cave-ins Triggered . | . . . . . . . . . Exploration Rate (%) 27 | 4 64 22 36 30 27 45 5 16 Regions Visited 8 Branch Regions 3 Pre-discovered Areas . | . . . . . . . . . Known Exits Taken 1 | . . . 1 . . . . . Unknown Exits Taken 7 | 1 1 1 . 1 1 1 1 . Scrap Searched 1 | . . . . . . 1 . . Spaces Dug . | . . . . . . . . . Terrain Destroyed 318 | . . . . . 258 . . 60 Melee . | . . . . . . . . . Projectile 3 | . . . . . 2 . . 1 AOE 315 | . . . . . 256 . . 59 Terrain Rammed . | . . . . . . . . . Walls Destroyed . | . . . . . . . . . Machines Disabled . | . . . . . . . . . Actions | -11 -10 -9 -9 -8 -7 -7 -7 -6 --------- Run | Yrd Mat Mat Min Mat Fac Low Low Fac Total 3890 | 49 341 414 221 450 1066 296 26 1027 Wait 426 | . 24 98 . . 15 . . 289 Move 3107 | 41 289 270 211 379 921 280 26 690 Hop . | . . . . . . . . . Pick Up 29 | 1 5 1 . 8 10 4 . . Fast Attach 58 | 5 7 3 . 9 20 2 . 12 Attach 27 | . . 2 . 5 8 3 . 9 Detach 17 | . . . . 3 8 4 . 2 Swap 14 | 1 . 2 2 2 6 . . 1 Drop 34 | 1 2 3 2 11 7 3 . 5 Fire 134 | . 14 28 6 33 43 . . 10 Melee 18 | . . . . . 9 . . 9 Ram . | . . . . . . . . . Kick 9 | . . . . . 9 . . . Crush 7 | . . 7 . . . . . . Escape Stasis 10 | . . . . . 10 . . . Rewire . | . . . . . . . . . Trap . | . . . . . . . . . Miscellaneous . | . . . . . . . . . Route ------- -11/Scrapyard -10/Materials -9/Materials -9/Mines -8/Materials -7/Factory -7/Lower Caves -7/Lower Caves -6/Factory History --------- Turn | Location | Event 7 | -11/Scrapyard | Discovered new exit (range 15) 75 | -11/Scrapyard | Entered Materials 308 | -10/Materials | Build established: Mutant 426 | -10/Materials | Repaired Lgt. Treads 609 | -10/Materials | Discovered new exit (range 6) 620 | -10/Materials | Entered another Materials area 620 | -9/Materials | Evolved 2 slots: Utility x2 1194 | -9/Materials | Discovered new exit (range 12) 1257 | -9/Materials | Entered Mines 1272 | -9/Mines | Identified exit to Materials 1431 | -9/Mines | Build established: Scavenger-Mutant 1616 | -9/Mines | Entered Materials 1616 | -8/Materials | Evolved 2 slots: Weapon x2 2107 | -8/Materials | Lost 4 parts (2n1u1w) 2343 | -8/Materials | Discovered new exit (range 3) 2370 | -8/Materials | Entered Factory 2370 | -7/Factory | Evolved 2 slots: Power x1, Utility x1 2609 | -7/Factory | Build established: Gunner 3307 | -7/Factory | Noticed a derelict Sapper rigging charges 4019 | -7/Factory | Core integrity fell below 50% 4139 | -7/Factory | Core integrity fell below 20% 4199 | -7/Factory | Build established: Mutant 4203 | -7/Factory | Lost 11 parts (1p2n2u6w) 4403 | -7/Factory | Discovered new exit (range 3) 4435 | -7/Factory | Entered Lower Caves 4645 | -7/Lower Caves | Build established: Tank 4831 | -7/Lower Caves | Encountered a Warlord checkpoint 4991 | -7/Lower Caves | Discovered new exit (range 5) 5086 | -7/Lower Caves | Attracted the attention of an 0b10 outpost 5120 | -7/Lower Caves | Entered another Lower Caves area 5180 | -7/Lower Caves | Discovered new exit (range 5) 5191 | -7/Lower Caves | Entered Factory 5191 | -6/Factory | Evolved 2 slots: Propulsion x2 6833 | -6/Factory | Lost 3 parts (1p1u1w) 6920 | -6/Factory | Lost 7 parts (3n2u2w) 6929 | -6/Factory | Core integrity fell below 50% 6947 | -6/Factory | Core integrity fell below 20% 6969 | -6/Factory | Destroyed by Y-54 Guardian with Gatling Laser Last Messages --------------- 06952_ Acquired Com. Battery. 06954_ Critical hit (Burn: +37). 06956_ Com. Battery destroyed. 06957_ System Guard destroyed. 06959_ M-28 Smith repairs G-50 Soldier Adv. Heat Sink. 06964_ Nuclear Reactor explodes. 06964_ Destroyed Adv. Heat Sink. 06964_ Destroyed Lgt. Nuclear Core. 06964_ S-27 Virus destroyed. 06964_ Arc Projector destroyed. 06964_ Destroyed Arc Projector. 06964_ G-50 Soldier destroyed. 06965_ Hvy. Plasma Cannon destroyed. 06965_ Com. Battery destroyed. 06966_ The unstable cave ceiling collapses. 06966_ R-10 Processor collects Hvy. Laser. 06966_ Penetrated by Slug. 06966_ U-05 Engineer lays Concrete. 06969_ Hvy. Plasma Cannon destroyed. Map ----- +----------------------------------------------------+ | ?????????????????????????# ????######*% #???? | | ?????????????????????????# ##+##??????#]* #???? | | ?????????????????????????# ?? ! ?????# / #???? | | ?????????????????????????#????? ???# ! #???? | | ??????????????????????????????"""" ??# %! #???? | | ?????????????????????????????""""" ##%*% #???? | | ????????????????????????##???""" / == #???? | | ????????????????????? ?# ## #???? | | ??????????????????? ?+ ?????# #???? | | ???????????????????" ?# ?????????# #???? | | ??????????????? "T" ???########## #???? | | ??????????????# " " ???# #???? | | ??????????????# ???# #???? | | ??????????????# #### #???? | | ??????????????# o +???? | | ????????????#+# m #???? | | ??????????? u A #???? | | ??????????? #???? | | ??????????? ###???? | | ?????????? #?????? | | ??????????? ]R% g Yh ####### #?????? | | ??????????? g #?????# #?????? | | ????????????????# # g #####?????# #?????? | | ??????????????????# / %% #???????# #?????? | | ??????????????????# [ ##??????# #?????? | | ??????????????????# @ #??????# #?????? | | ????????????????# k #??????# #?????? | | ????????????????### #??????# #?????? | | ??????????????????## #??????# #?????? | | ???????????????????# ! ##??????# #?????? | | ???????????????????## #???????# #?????? | | ????????????????????## # #??????? ?????? | | ?????????????????????## ??????? ?????? | | ??????????????????????# ?????? ?????? | | ??????????????????????# ????? ?????? | | ??????????????????????# = ????? ??????? | | ??????????????????????# ! #?????????????? | | ??????????????????????#=[[ ??????????????? | | ??????????????????????#[[[ """ ""????????????????? | | ??????????????????????#[[ ??????????????????????? | | ??????????????????????? ??????????????????????? | | ?????????????????????????????????????????????????? | | ?????????????????????????????????????????????????? | | ?????????????????????????????????????????????????? | | ?????????????????????????????????????????????????? | | ?????????????????????????????????????????????????? | | ?????????????????????????????????????????????????? | | ?????????????????????????????????????????????????? | | ?????????????????????????????????????????????????? | | ?????????????????????????????????????????????????? | +----------------------------------------------------+ Best States ------------- Heat Dissipation 37 Coolant Potential 65 Energy Generation 24 Energy Capacity 300 Matter Stores 300 Matter Capacity 450 Sight Range 18 Terrain Scan Density 10 ECM Strength 2 Corruption Containment 8 Armor Coverage 900 Resistance: TH 10 Resistance: EM 25 Evasion (%) 55 Targeting Accuracy 5 Melee Accuracy 10 Recoil Reduction 2 Item Schematics ----------------- Lgt. Treads | -8/Materials | Scanalyzed Robot Schematics ------------------ None Fabricated ------------ Nothing Repaired ---------- Lgt. Treads | 58% | -10/Materials Alien Tech Used ----------------- None Achievements -------------- It Was An Accident, I Swear Challenges ------------ None Game ------ Seed CatalystTerrabombWings Manual? 0 Play Time 00:48:51 Cumulative 14.8 hours Start 2025.08.21 @ 14:51:21 End 2025.08.21 @ 16:19:40 Sessions 1 Manual Loads 0 Difficulty Rogue Special Mode None Game No. 40 Rogue 40 Adventurer 0 Explorer 0 Win Type - Total 0 Types 0/0/0/0/0/0/0/0/0/0 Lore% 9 Gallery% 21 Achievement% 19 Wizard Run 0 Options --------- Layout 1 ASCII 0 Keyboard 1 Movement Vi Keybinds 0 Fullscreen 1 Font 16/SmallcapsGlow Map View 55x38 Zoom Use 0% Tactical HUD 1 Map Filters NONE Filters NONE Steam 1 RUN: 0d938d30-812c-4f29-a097-cb64c08aa45a